[Event "10th Iberoamericano-ch 2024"]
[Site "Linares"]
[Date "2024.10.01"]
[Round "9.34"]
[White "Vitier Vazquez, Cristian"]
[Black "Dias, Ivo Rodrigues"]
[Result "1-0"]
[Annotator "RC"]
[ECO "A06"]
[WhiteElo "2356"]
[BlackElo "2077"]
[PlyCount "91"]
[EventDate "2024.09.25"]
[EventType "swiss"]
[EventCountry "ESP"]
[SourceTitle "playchess.com"]
[Source "ChessBase"]
[SourceQuality "1"]
[TimeControl "5400+30"]

1. Nf3 {[%emt 0:03:57]} d5 {[%emt 0:00:49]} 2. e3 {[%emt 0:01:24]} Nf6 {[%emt 0:00:28]} 3. c4 {[%emt 0:00:06]} e6 {[%emt 0:00:10]} 4. Nc3 {[%emt 0:00:08]} a6 {[%emt 0:01:07]} 5. b3 {[%emt 0:00:19]} Bd6 {[%emt 0:00:17]} 6. Bb2 {[%emt 0:00:30]} Nbd7 {[%emt 0:00:42]} 7. Be2 {[%emt 0:06:11]} O-O {[%emt 0:00:37]} 8. Qc2 {[%emt 0:03:03]} Re8 {[%emt 0:05:40]} 9. O-O {[%emt 0:16:05]} b6 {[%emt 0:02:40]} 10. cxd5 {[%emt 0:00:53]} exd5 {[%emt 0:00:17]} 11. Nd4 {[%emt 0:00:13]} Nc5 {[%emt 0:03:30]} 12. f4 {[%emt 0:09:45]} Qd7 {[%emt 0:05:53]} 13. Bf3 {[%emt 0:18:20]} Bb7 {[%emt 0:06:36]} 14. Nd1 {[%emt 0:12:28]} a5 {[%emt 0:14:36]} 15. Nf2 {[%emt 0:03:30]} Ba6 {[%emt 0:04:11]} 16. Rfc1 {[%emt 0:13:41]} Nfe4 {[%emt 0:02:39]} 17. Bg4 {[%emt 0:00:36]} Qd8 {[%emt 0:02:18]} 18. Nxe4 {[%emt 0:00:18]} dxe4 {[%emt 0:02:01]} 19. Nf5 {[%emt 0:00:22]} Bf8 {[%emt 0:00:17]} 20. Qc3 {[%emt 0:02:01]} f6 {[%emt 0:00:12]} 21. Nd4 {[%emt 0:00:23]} Qd5 {[%emt 0:08:51]} 22. Ba3 {[%emt 0:02:00]} Bd3 {[%emt 0:22:00]} 23. Bd1 {[%emt 0:01:54]} Kh8 {[%emt 0:01:06]} 24. b4 {[%emt 0:00:53]} axb4 {[%emt 0:04:35]} 25. Bxb4 {[%emt 0:00:02]} Bd6 {[%emt 0:00:28]} 26. a4 {[%emt 0:00:39]} Rad8 {[%emt 0:00:53]} 27. Nb3 {[%emt 0:01:58]} Na6 {[%emt 0:00:36]} 28. Bxd6 {[%emt 0:00:08]} Rxd6 {[%emt 0:00:17]} 29. a5 {[%emt 0:00:36]} b5 {[%emt 0:00:00]} 30. Bc2 {[%emt 0:02:11]} Bc4 {[%emt 0:00:49]} 31. Rab1 {[%emt 0:00:18]} c5 {[%emt 0:01:23]} 32. Rd1 {[%emt 0:00:40]} Nb4 {[%emt 0:02:34]} 33. Nc1 {[%emt 0:00:31]} Qh5 {[%emt 0:00:36]} 34. Bb3 {[%emt 0:00:50]} Nd5 {[%emt 0:01:22]} 35. Qc2 {[%emt 0:00:25]} Red8 {[%emt 0:03:01]} 36. Re1 {[%emt 0:00:37]} Nb4 {[%emt 0:02:11]} 37. Qxe4 {[%emt 0:00:12]} Rxd2 {[%emt 0:00:32]} 38. Bxc4 {[%emt 0:00:29]} bxc4 {[%emt 0:00:02]} 39. Qxc4 {[%emt 0:00:44]} Nc2 {[%emt 0:01:25]} 40. Nb3 {[%emt 0:00:33]} Nxe1 {[%emt 0:00:58]} 41. Nxd2 {[%emt 0:00:20]} Nxg2 {[%emt 0:00:10]} 42. Qd3 {[%emt 0:00:40]} Qe8 {[%emt 0:00:52]} 43. Qe4 {[%emt 0:00:06]} Nxe3 {[%emt 0:00:56]} 44. Qxe8+ {[%emt 0:00:15]} Rxe8 {[%emt 0:00:01]} 45. a6 {[%emt 0:00:23]} Ra8 {[%emt 0:00:09]} 46. a7 {[%emt 0:00:19]} 1-0

[Event "10th Iberoamericano-ch 2024"]
[Site "Linares"]
[Date "2024.10.01"]
[Round "9.35"]
[White "Vehi Bach, Victor Manuel"]
[Black "Jodorcovsky Werjivker, Paulo"]
[Result "1-0"]
[Annotator "RC"]
[ECO "B33"]
[WhiteElo "2191"]
[BlackElo "2092"]
[PlyCount "95"]
[EventDate "2024.09.25"]
[EventType "swiss"]
[EventCountry "ESP"]
[SourceTitle "playchess.com"]
[Source "ChessBase"]
[SourceQuality "1"]
[TimeControl "5400+30"]

1. e4 {[%emt 0:00:04]} c5 {[%emt 0:00:05]} 2. Nf3 {[%emt 0:00:04]} Nc6 {[%emt 0:00:04]} 3. d4 {[%emt 0:00:08]} cxd4 {[%emt 0:00:05]} 4. Nxd4 {[%emt 0:00:07]} Nf6 {[%emt 0:00:03]} 5. Nc3 {[%emt 0:00:06]} e6 {[%emt 0:00:05]} 6. Ndb5 {[%emt 0:00:48]} Bc5 {[%emt 0:00:07]} 7. Bf4 {[%emt 0:01:07]} O-O {[%emt 0:00:11]} 8. Bc7 {[%emt 0:00:43]} Qe7 {[%emt 0:00:06]} 9. Bd6 {[%emt 0:00:07]} Bxd6 {[%emt 0:00:20]} 10. Qxd6 {[%emt 0:00:08]} Qd8 {[%emt 0:00:36]} 11. Nc7 {[%emt 0:04:44]} Rb8 {[%emt 0:00:26]} 12. Be2 {[%emt 0:00:14]} b5 {[%emt 0:33:02]} 13. e5 {[%emt 0:01:04]} b4 {[%emt 0:00:58]} 14. exf6 {[%emt 0:00:06]} bxc3 {[%emt 0:00:06]} 15. fxg7 {[%emt 0:00:05]} Kxg7 {[%emt 0:00:21]} 16. Qg3+ {[%emt 0:03:49]} Kh8 {[%emt 0:00:17]} 17. b3 {[%emt 0:04:04]} Qf6 {[%emt 0:02:36]} 18. Nb5 {[%emt 0:02:48]} Ba6 {[%emt 0:04:04]} 19. a4 {[%emt 0:21:14]} Bxb5 {[%emt 0:01:49]} 20. axb5 {[%emt 0:07:37]} Nd4 {[%emt 0:03:11]} 21. Bd3 {[%emt 0:00:07]} Rg8 {[%emt 0:05:51]} 22. Qh3 {[%emt 0:01:32]} Qe5+ {[%emt 0:01:28]} 23. Qe3 {[%emt 0:00:31]} Qc5 {[%emt 0:09:32]} 24. Ra4 {[%emt 0:05:19]} e5 {[%emt 0:05:47]} 25. O-O {[%emt 0:00:43]} Rg7 {[%emt 0:03:01]} 26. Re1 {[%emt 0:11:41]} d6 {[%emt 0:02:56]} 27. Rc4 {[%emt 0:09:29]} Qd5 {[%emt 0:05:09]} 28. Be4 {[%emt 0:00:07]} Qxb5 {[%emt 0:01:40]} 29. Rxc3 {[%emt 0:00:53]} f5 {[%emt 0:02:23]} 30. Bf3 {[%emt 0:01:01]} Qb4 {[%emt 0:04:52]} 31. Rd1 {[%emt 0:14:01]} f4 {[%emt 0:09:10]} 32. Qd2 {[%emt 0:00:12]} Rbg8 {[%emt 0:00:30]} 33. g3 {[%emt 0:00:02]} fxg3 {[%emt 0:01:14]} 34. hxg3 {[%emt 0:00:07]} Rf8 {[%emt 0:00:21]} 35. Bh5 {[%emt 0:02:19]} Qb6 {[%emt 0:01:49]} 36. Re1 {[%emt 0:03:25]} Nf5 {[%emt 0:01:05]} 37. Kh1 {[%emt 0:01:33]} Nd4 {[%emt 0:01:01]} 38. Kg1 {[%emt 0:01:04]} Qb7 {[%emt 0:01:48]} 39. Rd3 {[%emt 0:02:36]} Rf5 {[%emt 0:00:58]} 40. Bd1 {[%emt 0:00:01]} Rfg5 {[%emt 0:00:29]} 41. c3 {[%emt 0:01:22]} Nf5 {[%emt 0:00:04]} 42. b4 {[%emt 0:02:04]} e4 {[%emt 0:01:01]} 43. Rxd6 {[%emt 0:00:38]} e3 {[%emt 0:00:40]} 44. Rd8+ {[%emt 0:00:35]} Rg8 {[%emt 0:00:06]} 45. Rxe3 {[%emt 0:00:59]} Nxe3 {[%emt 0:00:23]} 46. Qd4+ {[%emt 0:00:18]} R5g7 {[%emt 0:01:06]} 47. Rxg8+ {[%emt 0:00:11]} Kxg8 {[%emt 0:00:07]} 48. Bb3+ {[%emt 0:00:12]} 1-0

[Event "10th Iberoamericano-ch 2024"]
[Site "Linares"]
[Date "2024.10.01"]
[Round "9.36"]
[White "Rodriguez Arrieta, Maria Elena"]
[Black "Prado Acebo, Ines"]
[Result "0-1"]
[Annotator "RC"]
[ECO "B40"]
[WhiteElo "1941"]
[BlackElo "2189"]
[PlyCount "62"]
[EventDate "2024.09.25"]
[EventType "swiss"]
[EventCountry "ESP"]
[SourceTitle "playchess.com"]
[Source "ChessBase"]
[SourceQuality "1"]
[TimeControl "5400+30"]

1. e4 {[%emt 0:00:01]} c5 {[%emt 0:00:07]} 2. Nf3 {[%emt 0:00:05]} e6 3. d3 {[%emt 0:00:06]} Nc6 {[%emt 0:00:23]} 4. g3 {[%emt 0:00:30]} Nf6 {[%emt 0:00:17]} 5. Bg2 {[%emt 0:00:06]} d5 {[%emt 0:00:18]} 6. Nbd2 {[%emt 0:00:08]} g6 {[%emt 0:00:17]} 7. O-O {[%emt 0:00:15]} Bg7 {[%emt 0:00:07]} 8. Re1 {[%emt 0:02:05]} O-O {[%emt 0:00:16]} 9. c3 {[%emt 0:02:15]} a5 {[%emt 0:01:53]} 10. Qe2 {[%emt 0:15:14]} b6 {[%emt 0:02:19]} 11. c4 {[%emt 0:06:41]} dxc4 {[%emt 0:16:03]} 12. dxc4 {[%emt 0:00:30]} e5 {[%emt 0:01:20]} 13. Nb1 {[%emt 0:18:36]} Bg4 {[%emt 0:06:03]} 14. Nc3 {[%emt 0:00:30]} Nd4 {[%emt 0:00:30]} 15. Qd1 {[%emt 0:00:47]} Ne8 {[%emt 0:08:22]} 16. h3 {[%emt 0:00:30]} Be6 {[%emt 0:00:30]} 17. Nd5 {[%emt 0:00:30]} Nd6 {[%emt 0:00:30]} 18. b3 {[%emt 0:00:30]} Bxd5 {[%emt 0:00:30]} 19. cxd5 {[%emt 0:00:30]} Qd7 {[%emt 0:00:30]} 20. Bb2 {[%emt 0:00:30]} Rfc8 {[%emt 0:00:30]} 21. Rc1 {[%emt 0:00:30]} a4 {[%emt 0:00:30]} 22. Nd2 {[%emt 0:26:02]} axb3 {[%emt 0:28:42]} 23. axb3 {[%emt 0:00:30]} b5 {[%emt 0:01:43]} 24. f4 {[%emt 0:04:13]} f6 {[%emt 0:04:51]} 25. fxe5 {[%emt 0:00:30]} fxe5 {[%emt 0:00:07]} 26. Nf3 {[%emt 0:01:07]} Ra2 {[%emt 0:05:28]} 27. Bxd4 {[%emt 0:02:17]} cxd4 {[%emt 0:00:07]} 28. Rxc8+ {[%emt 0:06:13]} Qxc8 {[%emt 0:00:06]} 29. Ng5 {[%emt 0:00:04]} Qc3 {[%emt 0:03:16]} 30. Rf1 {[%emt 0:00:53]} Qxg3 {[%emt 0:01:38]} 31. Qf3 {[%emt 0:01:00]} Qxg5 {[%emt 0:00:06]} 0-1

[Event "10th Iberoamericano-ch 2024"]
[Site "Linares"]
[Date "2024.10.01"]
[Round "9.37"]
[White "Guillo Longares, Cecilia"]
[Black "Gomez Carreno, Martin"]
[Result "0-1"]
[Annotator "RC"]
[ECO "D37"]
[WhiteElo "2036"]
[BlackElo "2124"]
[PlyCount "66"]
[EventDate "2024.09.25"]
[EventType "swiss"]
[EventCountry "ESP"]
[SourceTitle "playchess.com"]
[Source "ChessBase"]
[SourceQuality "1"]
[TimeControl "5400+30"]

1. d4 {[%emt 0:00:02]} Nf6 {[%emt 0:00:07]} 2. c4 {[%emt 0:00:06]} e6 {[%emt 0:00:18]} 3. Nf3 {[%emt 0:00:05]} d5 {[%emt 0:00:04]} 4. Nc3 {[%emt 0:00:06]} a6 {[%emt 0:00:04]} 5. cxd5 {[%emt 0:00:04]} exd5 {[%emt 0:00:03]} 6. Bg5 {[%emt 0:00:05]} Be6 {[%emt 0:00:07]} 7. e3 {[%emt 0:00:15]} Nbd7 {[%emt 0:00:06]} 8. Bd3 {[%emt 0:00:11]} Bd6 {[%emt 0:00:06]} 9. O-O {[%emt 0:00:22]} c6 {[%emt 0:00:05]} 10. Bf4 {[%emt 0:00:03]} Qc7 {[%emt 0:00:06]} 11. Bxd6 {[%emt 0:00:11]} Qxd6 {[%emt 0:00:06]} 12. Qc2 {[%emt 0:00:43]} O-O {[%emt 0:00:11]} 13. Na4 {[%emt 0:03:47]} Bg4 {[%emt 0:07:38]} 14. Nd2 {[%emt 0:02:00]} Bh5 {[%emt 0:00:40]} 15. b4 {[%emt 0:07:05]} b5 {[%emt 0:03:43]} 16. Nc5 {[%emt 0:00:34]} Nb6 {[%emt 0:01:50]} 17. e4 {[%emt 0:05:59]} dxe4 {[%emt 0:01:56]} 18. Ndxe4 {[%emt 0:00:10]} Nxe4 {[%emt 0:02:56]} 19. Bxe4 {[%emt 0:00:32]} Bg6 {[%emt 0:00:39]} 20. Rfd1 {[%emt 0:09:11]} Rfe8 {[%emt 0:06:09]} 21. a3 {[%emt 0:07:38]} Bxe4 {[%emt 0:06:38]} 22. Nxe4 {[%emt 0:00:19]} Qg6 {[%emt 0:00:14]} 23. f3 {[%emt 0:05:49]} Nd5 {[%emt 0:04:48]} 24. Re1 {[%emt 0:07:41]} Re7 {[%emt 0:05:37]} 25. Rac1 {[%emt 0:10:53]} Rae8 {[%emt 0:14:38]} 26. Qxc6 {[%emt 0:02:02]} Nf4 {[%emt 0:00:25]} 27. Qc2 {[%emt 0:12:23]} f5 {[%emt 0:01:17]} 28. Qa2+ {[%emt 0:01:00]} Kh8 {[%emt 0:01:30]} 29. Qd2 {[%emt 0:00:13]} fxe4 {[%emt 0:00:44]} 30. Qxf4 {[%emt 0:00:46]} exf3 {[%emt 0:00:17]} 31. Qg3 {[%emt 0:01:54]} Rxe1+ {[%emt 0:01:09]} 32. Rxe1 {[%emt 0:00:36]} Rxe1+ {[%emt 0:00:07]} 33. Kf2 {[%emt 0:01:01]} Qxg3+ {[%emt 0:00:08]} 0-1

[Event "10th Iberoamericano-ch 2024"]
[Site "Linares"]
[Date "2024.10.01"]
[Round "9.38"]
[White "Maldonado Mena, German"]
[Black "Mayorga Araya, Sofia"]
[Result "1-0"]
[Annotator "RC"]
[ECO "A50"]
[WhiteElo "2123"]
[BlackElo "2087"]
[PlyCount "53"]
[EventDate "2024.09.25"]
[EventType "swiss"]
[EventCountry "ESP"]
[SourceTitle "playchess.com"]
[Source "ChessBase"]
[SourceQuality "1"]
[TimeControl "5400+30"]

1. d4 {[%emt 0:06:00]} Nf6 {[%emt 0:00:07]} 2. c4 {[%emt 0:00:04]} e6 {[%emt 0:00:03]} 3. Bf4 {[%emt 0:00:08]} d5 {[%emt 0:00:32]} 4. cxd5 {[%emt 0:00:07]} exd5 {[%emt 0:00:11]} 5. e3 {[%emt 0:00:13]} c6 {[%emt 0:00:09]} 6. Bd3 {[%emt 0:00:07]} Bb4+ {[%emt 0:01:09]} 7. Nc3 {[%emt 0:02:29]} O-O {[%emt 0:00:35]} 8. Nge2 {[%emt 0:03:34]} Nh5 {[%emt 0:03:53]} 9. Bg3 {[%emt 0:00:24]} Re8 {[%emt 0:01:00]} 10. Nf4 {[%emt 0:08:44]} Nxg3 {[%emt 0:01:41]} 11. Bxh7+ {[%emt 0:00:33]} Kxh7 {[%emt 0:15:11]} 12. hxg3+ {[%emt 0:00:06]} Kg8 {[%emt 0:00:02]} 13. Qh5 {[%emt 0:00:07]} f6 {[%emt 0:00:26]} 14. Qg6 {[%emt 0:19:34]} Kf8 {[%emt 0:13:00]} 15. Rh8+ {[%emt 0:37:21]} Ke7 {[%emt 0:00:08]} 16. Qxg7+ {[%emt 0:00:02]} Kd6 {[%emt 0:00:16]} 17. Rxe8 {[%emt 0:00:04]} Qxe8 {[%emt 0:00:07]} 18. Qxf6+ {[%emt 0:00:03]} Kc7 {[%emt 0:00:11]} 19. Nd3 {[%emt 0:07:56]} Nd7 {[%emt 0:10:01]} 20. Qf4+ {[%emt 0:00:03]} Bd6 {[%emt 0:01:20]} 21. Nxd5+ {[%emt 0:00:05]} cxd5 {[%emt 0:00:41]} 22. Rc1+ {[%emt 0:00:04]} Nc5 {[%emt 0:00:38]} 23. Rxc5+ {[%emt 0:00:03]} Kd7 {[%emt 0:00:07]} 24. Rxd5 {[%emt 0:00:05]} Qe6 {[%emt 0:00:56]} 25. Nc5+ {[%emt 0:00:40]} Kc6 {[%emt 0:01:21]} 26. Nxe6 {[%emt 0:00:07]} Bxf4 {[%emt 0:00:31]} 27. Nxf4 {[%emt 0:00:23]} 1-0

[Event "10th Iberoamericano-ch 2024"]
[Site "Linares"]
[Date "2024.10.01"]
[Round "9.39"]
[White "Atienza Alvarez, Javier"]
[Black "Garcia Paolicchi, Raul"]
[Result "1-0"]
[Annotator "RC"]
[ECO "D15"]
[WhiteElo "2119"]
[BlackElo "2030"]
[PlyCount "47"]
[EventDate "2024.09.25"]
[EventType "swiss"]
[EventCountry "ESP"]
[SourceTitle "playchess.com"]
[Source "ChessBase"]
[SourceQuality "1"]
[TimeControl "5400+30"]

1. d4 {[%emt 0:02:16]} d5 {[%emt 0:00:06]} 2. Nf3 {[%emt 0:00:09]} Nf6 {[%emt 0:00:17]} 3. c4 {[%emt 0:00:05]} c6 {[%emt 0:00:19]} 4. Nc3 {[%emt 0:00:22]} dxc4 {[%emt 0:00:31]} 5. e4 {[%emt 0:00:11]} b5 {[%emt 0:00:17]} 6. Be2 {[%emt 0:00:05]} b4 {[%emt 0:04:35]} 7. Na4 {[%emt 0:00:05]} Nxe4 {[%emt 0:01:33]} 8. Bxc4 {[%emt 0:00:05]} e6 {[%emt 0:02:39]} 9. O-O {[%emt 0:00:07]} Be7 {[%emt 0:01:33]} 10. Re1 {[%emt 0:00:58]} Nf6 {[%emt 0:02:49]} 11. Ne5 {[%emt 0:00:55]} O-O {[%emt 0:01:43]} 12. Bg5 {[%emt 0:03:08]} Nd5 {[%emt 0:14:04]} 13. Bxe7 {[%emt 0:05:06]} Qxe7 {[%emt 0:00:45]} 14. Rc1 {[%emt 0:04:26]} Ba6 {[%emt 0:17:38]} 15. Nxc6 {[%emt 0:06:21]} Nxc6 {[%emt 0:00:11]} 16. Bxd5 {[%emt 0:00:17]} Na5 {[%emt 0:01:07]} 17. Bxa8 {[%emt 0:07:07]} Rxa8 {[%emt 0:00:08]} 18. Qh5 {[%emt 0:02:55]} Qd8 {[%emt 0:03:11]} 19. Qc5 {[%emt 0:03:06]} Bb7 {[%emt 0:03:07]} 20. Qxb4 {[%emt 0:00:54]} Qd5 {[%emt 0:01:40]} 21. f3 {[%emt 0:00:21]} Rb8 {[%emt 0:07:07]} 22. Re5 {[%emt 0:05:02]} Nc6 {[%emt 0:01:14]} 23. Rxd5 {[%emt 0:00:05]} Nxb4 {[%emt 0:00:06]} 24. Rb5 {[%emt 0:00:03]} 1-0